Cogmind - Beta 15 @@@ ROGUE MODE // 2025.05.21 @ 16:17:39 Player: MolePlayingNice Result: Self-destructed Performance ------------- Evolutions (5) 2500 Regions Visited (11) 2200 Robots Destroyed (101) 505 Value Destroyed (3298) 3298 Prototype IDs (30) 600 Alien Tech Used (0) 0 Bonus (3491) 3491 TOTAL SCORE: 12594 Bonus ------- Follower Combat Kills 1614 Network Hubs Disabled 600 Registered with UFD 300 Met Optimus in HQ 500 Met R17 at Cetus 500 Friendly Fire -23 Cogmind --------- Core Integrity 1000/1000 Matter 279/300 Energy 100/100 System Corruption 0% Temperature Cool (0) Movement Core (50) Location -5/Factory Parts ------- > --- POWER (1) -------- (None) > --- PROPULSION (4) --- (None) > --- UTILITY (8) ------ (None) > --- WEAPON (4) ------- (None) > --- INVENTORY (5) ---- Energy Well (350) Enhanced Optical Array Improved Hacking Suite Advanced Variable Charge Gun Plasma Cutter Peak State ------------ > --- POWER ------------ F-cell Engine > --- PROPULSION ------- Centrium Heavy Treads Light Armored Exoskeleton > --- UTILITY ---------- Advanced Heat Sink Advanced Heat Sink High-capacity Storage Unit Terrain Scan Processor Layered Medium Armor Plating Centrium Medium Armor Plating > --- WEAPON ----------- Gatling Laser Gatling Laser Plasma Rifle Advanced Variable Charge Gun > --- INVENTORY -------- Quantum Reactor Aluminum Leg Aluminum Leg Energy Well High-capacity Matter Pod Advanced Sensor Array Experimental Terrain Scanner Improved Utility Shielding Heavy Laser Improved EM Pulse Cannon Flak Gun Heavy Machine Gun Advanced KE Penetrator Assault Cannon Advanced Assault Cannon Missile Launcher Plasma Cutter CPS Tube CPS Tube Heavy Pick [Rating: 88] Favorites ----------- Power Improved Ion Engine Engine Improved Ion Engine Power Core Neutrino Core Reactor Quantum Reactor Propulsion Aluminum Leg Treads Centrium Heavy Treads Leg Aluminum Leg Wheel Armored Wheel Flight Unit Improved Cesium-ion Thruster Utility High-capacity Storage Unit Device Improved Heat Sink Storage High-capacity Storage Unit Processor Targeting Computer Hackware Hacking Suite Protection Hardened Light Armor Plating Weapon Improved Light Cannon Energy Gun Plasma Rifle Energy Cannon Beam Cannon Ballistic Gun Improved Heavy Machine Gun Ballistic Cannon Improved Light Cannon Launcher Precision Rocket Launcher Special Weapon Plasma Cutter Impact Weapon Flail Slashing Weapon Ripper Piercing Weapon Heavy Pick Build | -11 -10 -9 -9 -9 -9 -6 -6 -6 -6 -6 -5 ------- Run | Yrd Mat Mat Sto Rec Scr Fac Ext Cet Arc Hub Fac Slots Evolved 10 | . . 2 . . . 6 . . . . 2 Power . | . . . . . . . . . . . . Propulsion 2 | . . 1 . . . 1 . . . . . Utility 6 | . . 1 . . . 3 . . . . 2 Weapon 2 | . . . . . . 2 . . . . . Parts Attached 100 | . 13 6 11 1 8 22 10 9 6 14 . Power 11 | . 2 . 1 . 1 1 4 1 . 1 . Engine 7 | . 2 . 1 . 1 1 1 1 . . . Core 3 | . . . . . . . 3 . . . . Reactor 1 | . . . . . . . . . . 1 . Propulsion 23 | . 3 1 4 . 3 5 . 2 . 5 . Treads 1 | . . . . . . . . 1 . . . Leg 20 | . 3 1 4 . 2 4 . 1 . 5 . Wheel 1 | . . . . . 1 . . . . . . Hover . | . . . . . . . . . . . . Flight 1 | . . . . . . 1 . . . . . Utility 28 | . 2 5 . 1 1 7 1 4 3 4 . Device 11 | . . 1 . . . 3 . 2 2 3 . Storage 3 | . 1 1 . 1 . . . . . . . Processor 4 | . 1 1 . . . 1 1 . . . . Hackware 1 | . . . . . . 1 . . . . . Protection 9 | . . 2 . . 1 2 . 2 1 1 . Artifact . | . . . . . . . . . . . . Weapon 38 | . 6 . 6 . 3 9 5 2 3 4 . Energy Gun 11 | . . . . . 1 3 3 1 2 1 . Energy Cannon 2 | . 1 . 1 . . . . . . . . Ballistic Gun 7 | . . . 2 . . 3 . 1 1 . . Ballistic Cannon 9 | . 4 . 2 . 2 . . . . 1 . Launcher 5 | . 1 . . . . 2 . . . 2 . Special Weapon 1 | . . . . . . . 1 . . . . Impact Weapon 1 | . . . 1 . . . . . . . . Slashing Weapon 1 | . . . . . . . 1 . . . . Piercing Weapon 1 | . . . . . . 1 . . . . . Special Melee Weapon . | . . . . . . . . . . . . Unidentified Prototypes 10 | . . . 2 . . 2 1 4 . 1 . Parts Lost 7 | . . . . . . 1 . . . 6 . Power 1 | . . . . . . 1 . . . . . Propulsion 4 | . . . . . . . . . . 4 . Utility 2 | . . . . . . . . . . 2 . Weapon . | . . . . . . . . . . . . Highest Loss Streak 4 | . . . . . . 1 . . . 4 . To Critical Strikes 1 | . . . . . . . . . . 1 . Average Backups 18 | 6 11 14 14 16 19 19 19 19 20 19 . Power . | 1 1 1 . . . . . 1 1 . . Propulsion 2 | 4 3 2 2 2 2 2 2 1 . . . Utility 6 | . 3 4 5 6 7 5 6 5 7 7 . Weapon 7 | 1 3 7 6 7 7 7 8 8 7 8 . Tool/Special . | . . . . . . . . . . . . Unused Backups 36 | . 15 1 1 . 1 1 2 2 2 8 3 Power 2 | . 2 . . . . . . . . . . Propulsion 4 | . 4 . . . . . . . . . . Utility 15 | . 3 . . . 1 . 2 . 2 4 3 Weapon 13 | . 6 1 1 . . 1 . 2 . 2 . Tool/Special 2 | . . . . . . . . . . 2 . Average Slot Usage (%) 95 | . 99 99 100 99 99 96 86 90 88 95 . Engine 7 | . 14 11 11 11 10 5 . 4 6 5 . Leg 26 | . 28 32 33 33 30 23 20 19 20 24 . Device 7 | . . 1 . . . 14 13 13 13 17 . Storage 8 | . 14 11 11 11 11 6 6 6 6 5 . Processor 8 | . 13 11 11 11 11 5 6 6 6 5 . Protection 8 | . . 9 11 11 11 8 6 11 8 7 . Energy Gun 10 | . . . . . . 16 18 25 21 24 . Ballistic Gun 2 | . 14 . 1 . . 4 5 . . . . Ballistic Cannon 10 | . 9 22 19 21 21 4 . . . . . Peak Build Rating 88 | 6 12 15 17 16 26 71 72 88 79 82 . Average Rating 42 | 6 8 14 15 15 22 57 67 72 75 75 . On Entrance 31 | 6 6 12 15 16 14 26 64 64 79 79 2 Naked Turns 19 | . . . . . . . . . . 19 . Heaviest Build 101 | 13 35 40 40 60 64 93 92 92 87 101 . Greatest Support 66 | 20 20 30 30 30 48 66 61 61 61 66 . Greatest Overweight (x) 6 | . 1 1 1 1 5 6 1 2 1 2 . Average Overweight (x) 1 | . . 1 . 1 1 2 1 1 1 . . Largest Inventory Capacity 20 | 8 15 15 15 20 20 20 20 20 20 20 . Average Capacity 18 | 8 13 15 15 16 20 20 20 20 20 19 . Most Carried 20 | 6 15 15 15 19 20 20 20 20 20 20 . Average Carried 18 | 6 12 14 14 16 19 19 19 19 19 19 . Final Capacity 20 | 8 15 15 15 20 20 20 20 20 20 5 5 Final Carried 20 | 6 15 14 15 19 20 20 20 20 20 5 5 Class Distribution -------------------- 27% | Mutant 24% | Commander-Mutant 19% | Scavenger-Tank 8% | Commander-Tank 8% | Scavenger-Skirmisher 5% | Skirmisher 3% | Commander-Skirmisher Dominant Class ---------------- Mutant | -10/Materials Mutant | -9/Materials Mutant | -9/Storage Mutant | -9/Recycling Commander-Mutant | -9/Scraptown Skirmisher | -6/Factory Commander-Tank | -6/Extension Scavenger-Tank | -6/Cetus Scavenger-Tank | -6/Archives Scavenger-Skirmisher | -6/Hub_04(d) Scavenger-Skirmisher | -5/Factory Resources | -11 -10 -9 -9 -9 -9 -6 -6 -6 -6 -6 -5 ----------- Run | Yrd Mat Mat Sto Rec Scr Fac Ext Cet Arc Hub Fac Matter Collected 3580 | 200 356 114 637 145 100 512 730 144 113 529 . Remotely . | . . . . . . . . . . . . Salvage Created 3714 | . 440 114 898 134 . 737 265 30 317 779 . Parts 193 | . 24 9 63 11 . 31 7 1 21 26 . Haulers Intercepted 5 | . . . 4 . . 1 . . . . . Recyclers Shooed 5 | . 2 . . 1 . 1 1 . . . . Parts Field Recycled . | . . . . . . . . . . . . Retrieved Matter . | . . . . . . . . . . . . Parts Self-Destructed . | . . . . . . . . . . . . Prevented . | . . . . . . . . . . . . Kills | -11 -10 -9 -9 -9 -9 -6 -6 -6 -6 -6 -5 ------- Run | Yrd Mat Mat Sto Rec Scr Fac Ext Cet Arc Hub Fac Combat Hostiles Destroyed 64 | . 13 1 22 4 . 11 4 . . 9 . Guns 22 | . 5 . 1 . . 6 2 . . 8 . Cannons 28 | . 4 1 18 4 . 1 . . . . . AOE 10 | . 3 . 3 . . 4 . . . . . Classes Destroyed 13 | . 5 1 2 . . 2 1 . . 2 . Worker 2 | . . . . . . 1 . . . 1 . Builder 3 | . 1 . . 1 . 1 . . . . . Hauler 5 | . . . 4 . . 1 . . . . . Recycler 7 | . 1 1 2 . . 1 . . . 2 . Operator 9 | . 1 . . . . . . . 8 . . Watcher 9 | . . . 1 . . 2 1 1 . 4 . Swarmer 17 | . 6 . 6 . . 4 1 . . . . Grunt 21 | . 7 . 9 1 . 2 . . . 2 . Sentry 17 | . . 1 7 3 . 3 2 . . 1 . Hunter 2 | . . . . . . . . . . 2 . Programmer 6 | . . . . . . 3 . . . 3 . Heavy 1 | . . . . . . . . . . 1 . Behemoth 1 | . . . . . . . 1 . . . . Thug 1 | . . . . . . . . . 1 . . Best Kill Streak 7 | . 6 2 6 1 . 7 1 1 1 3 . Combat Bots Only 5 | . 4 1 5 1 . 5 1 . . 3 . Max Kills in Single Turn 3 | . 3 1 2 1 . 2 1 1 1 1 . Gunslinging . | . . . . . . . . . . . . Exploded 3 | . 3 . 2 . . 2 . . . . . Melee . | . . . . . . . . . . . . Uniques/NPCs Destroyed . | . . . . . . . . . . . . Combat | -11 -10 -9 -9 -9 -9 -6 -6 -6 -6 -6 -5 -------- Run | Yrd Mat Mat Sto Rec Scr Fac Ext Cet Arc Hub Fac Hostile Shots Fired 394 | . 59 2 65 10 . 110 30 . 12 106 . Missed 117 | . 11 1 19 1 . 39 11 . 2 33 . Hits 277 | . 48 1 46 9 . 71 19 . 10 73 . Projectile 277 | . 48 1 46 9 . 71 19 . 10 73 . Critical Strikes 11 | . . . 3 1 . . 1 . . 6 . Part Disruptions 1 | . . . . . . 1 . . . . . Damage Taken 4298 | . 474 15 536 119 . 943 245 . 237 1729 . Core 882 | . 109 . 51 10 . 180 11 . 24 497 . Absorbed by Shields 82 | . . . . . . 55 27 . . . . Core Remaining (%) 64 | 100 56 . . . 84 . . . . 16 . Volleys Fired 204 | . 45 3 52 11 . 35 16 1 4 37 . Largest 4 | . 2 2 2 2 . 4 4 4 4 4 . Hottest 322 | . 80 66 91 66 . 255 240 310 322 322 . Shots Fired 517 | . 86 6 101 22 . 111 58 4 15 114 . Gun 345 | . 55 . 7 . . 100 58 4 15 106 . Cannon 161 | . 29 6 92 22 . 6 . . . 6 . Launcher 11 | . 2 . 2 . . 5 . . . 2 . Special . | . . . . . . . . . . . . Kinetic 248 | . 73 6 98 22 . 31 12 . . 6 . Thermal 258 | . 11 . 1 . . 75 46 4 15 106 . Explosive 11 | . 2 . 2 . . 5 . . . 2 . Electromagnetic . | . . . . . . . . . . . . Robot Hit Streak 22 | . 9 3 10 14 . 22 16 3 10 15 . Robot Miss Streak 4 | . 3 2 3 2 . 3 3 4 3 3 . Penetration Max . | . . . . . . . . . . . . Secondary Targets 2 | . . . . . . . 1 . . 1 . Max Gunslinging Chain 1 | . . . . . . . 1 . . 1 . Shots Hit Robots 350 | . 55 3 65 17 . 66 36 2 32 74 . Core Hits 174 | . 22 3 33 7 . 34 9 2 18 46 . Critical Kills 1 | . 1 . . . . . . . . . . Critical Parts Destroyed . | . . . . . . . . . . . . Critical Strikes 21 | . 3 . 3 . . 5 7 . . 3 . Burn 15 | . . . . . . 5 7 . . 3 . Meltdown 1 | . 1 . . . . . . . . . . Blast 5 | . 2 . 3 . . . . . . . . Melee Attacks 35 | . . . 3 . . 4 . . 21 7 . Impact 5 | . . . 3 . . 2 . . . . . Slashing . | . . . . . . . . . . . . Piercing 30 | . . . . . . 2 . . 21 7 . Sneak Attacks 12 | . . . . . . . . . 12 . . Combat Hostiles . | . . . . . . . . . . . . Follow-up Attacks . | . . . . . . . . . . . . Damage Inflicted 9594 | . 1030 61 1572 386 . 2102 889 45 1321 2188 . Guns 5131 | . 405 . 102 . . 1592 872 45 312 1803 . Cannons 2250 | . 380 61 1269 346 . 78 . . . 116 . Explosions 1101 | . 241 . 185 . . 429 . . . 246 . Melee 1001 | . . . . . . . . . 1001 . . Ramming 111 | . 4 . 16 40 . 3 17 . 8 23 . Kinetic 3096 | . 610 61 1371 346 . 474 118 . . 116 . Thermal 4285 | . 175 . . . . 1196 754 45 312 1803 . Explosive 1101 | . 241 . 185 . . 429 . . . 246 . Electromagnetic . | . . . . . . . . . . . . Impact . | . . . . . . . . . . . . Slashing . | . . . . . . . . . . . . Piercing 1001 | . . . . . . . . . 1001 . . Highest Corruption 14 | . . 1 2 2 . 8 8 8 8 14 . Average Corruption 4 | . . 1 1 2 . 3 8 8 3 2 . Corruption Purged 8 | . . . . . . . . . 6 2 . Corruption Blocked . | . . . . . . . . . . . . Effects 153 | . . 1 6 18 . 19 68 16 18 7 . Message Errors 37 | . . . 3 4 . 5 16 2 6 1 . Matter Fused 41 | . . . . 7 . 5 18 5 4 2 . Heat Flow Errors 16 | . . 1 . 2 . 2 6 3 1 1 . Energy Discharges 18 | . . . . 1 . 1 12 2 2 . . Parts Rejected 1 | . . . . . . 1 . . . . . Parts Fused 5 | . . . . . . . 2 1 2 . . Data Loss (minor) 18 | . . . 2 2 . 2 7 2 2 1 . Data Loss (major) 6 | . . . . 1 . 1 3 1 . . . Misfires 5 | . . . 1 . . 1 1 . 1 1 . Alerts 4 | . . . . 1 . . 2 . . 1 . Weapon Failures 2 | . . . . . . 1 1 . . . . Overload Shots . | . . . . . . . . . . . . Overflow Damage 175 | . 7 . 28 12 . 5 . . 123 . . Projectiles 19 | . . . 7 12 . . . . . . . Explosions 33 | . 7 . 21 . . 5 . . . . . Melee 123 | . . . . . . . . . 123 . . Knockbacks 7 | . . . 4 2 . . . . . 1 . Impact 2 | . . . 1 . . . . . . 1 . Kinetic 4 | . . . 3 1 . . . . . . . Secondary 1 | . . . . 1 . . . . . . . Self-Inflicted Damage 146 | . . . . . . 122 . . . 24 . Shots 3 | . . . . . . 2 . . . 1 . Rammed 3 | . . . . . . . . . . 3 . Targets Rammed 28 | . 2 . 5 7 . 1 2 . 1 10 . Kicked 25 | . 2 . 5 7 . 1 2 . 1 7 . Crushed . | . . . . . . . . . . . . Highest Temperature 370 | . 199 114 213 278 . 370 256 230 200 360 . Average Temperature 91 | . 76 28 54 80 . 138 88 109 108 118 . Received Heat Transfer 748 | . 162 9 183 66 . 133 45 . 45 105 . Effects 2 | . . . . 1 . . . . . 1 . Interference 1 | . . . . 1 . . . . . . . Short Circuit 1 | . . . . . . . . . . 1 . Siege Activations . | . . . . . . . . . . . . Martial Activations . | . . . . . . . . . . . . Shielding Activations . | . . . . . . . . . . . . Robots Disrupted . | . . . . . . . . . . . . Combat Hostiles . | . . . . . . . . . . . . Robots Corrupted . | . . . . . . . . . . . . Combat Hostiles . | . . . . . . . . . . . . Parts Fried 1 | . . . . . . . . . . 1 . Impact Corruptions . | . . . . . . . . . . . . Robots Melted 4 | . 1 . . . . . 2 . . 1 . Combat Hostiles 4 | . 1 . . . . . 2 . . 1 . Parts Melted 29 | . 2 . . . . 11 5 . 3 8 . Heat Transferred 10156 | . 370 . . . . 3003 2350 100 636 3697 . Parts Sabotaged . | . . . . . . . . . . . . Parts Stolen . | . . . . . . . . . . . . Parts Stripped . | . . . . . . . . . . . . Power Chain Reactions . | . . . . . . . . . . . . Alert | -11 -10 -9 -9 -9 -9 -6 -6 -6 -6 -6 -5 ------- Run | Yrd Mat Mat Sto Rec Scr Fac Ext Cet Arc Hub Fac Maximum Alert Level 1 | . . . 1 . . . 1 1 . . . Low Security (%) 90 | 100 100 100 51 100 . 100 78 89 100 100 . Level 1 9 | . . . 48 . . . 21 10 . . . Level 2 . | . . . . . . . . . . . . Level 3 . | . . . . . . . . . . . . Level 4 . | . . . . . . . . . . . . Level 5 . | . . . . . . . . . . . . High Security . | . . . . . . . . . . . . Max Security . | . . . . . . . . . . . . Peak Influence 293 | . 101 30 293 136 . 154 257 222 166 150 . Initial 131 | . . 27 . 106 . . 70 131 27 . 40 Average 61 | . 36 5 173 19 . 53 73 141 36 45 . Influence Increases 3807 | . 364 36 699 254 . 456 690 339 243 726 . Destroy 0b10 Robot/C 1880 | . 260 20 440 80 . 220 300 160 80 320 . Destroy 0b10 Robot/NC 195 | . 15 5 35 5 . 30 15 10 45 35 . Destroy Leader 408 | . 60 10 120 . . 84 26 . . 108 . Allied During Kill 545 | . . . . 1 . 6 182 165 87 104 . Successful Hack 117 | . 17 . 20 18 . 6 56 . . . . Select Force Hacks 200 | . . . . 150 . . . . . 50 . Disable Machine 300 | . . . 60 . . 45 105 . 30 60 . Destroy Structure 132 | . 12 1 24 . . 50 6 4 1 34 . Lose Combat Pursuer 30 | . . . . . . 15 . . . 15 . Influence Decreases 3767 | . 299 101 424 529 . 313 598 506 311 643 43 Entered New Map 468 | . . 38 . 169 . . 73 104 41 . 43 Time Decay 2762 | . 299 63 424 360 . 278 404 222 250 462 . Lost Part 65 | . . . . . . 10 . . . 55 . Lost Ally 411 | . . . . . . 25 60 180 20 126 . Purge Threat 61 | . . . . . . . 61 . . . . Squads Dispatched 22 | . 2 . 4 . . 7 . . . 9 . Investigation 5 | . 1 . 2 . . . . . . 2 . Extermination 6 | . . . . . . 3 . . . 3 . Reinforcement 7 | . 1 . 1 . . 1 . . . 4 . Assault 2 | . . . . . . 2 . . . . . Garrison 2 | . . . 1 . . 1 . . . . . Intercept . | . . . . . . . . . . . . Searches Triggered . | . . . . . . . . . . . . Construction Impeded 2 | . . . . . . 1 . . . 1 . Haulers Reinforced . | . . . . . . . . . . . . Active Scanning Responses . | . . . . . . . . . . . . Cargo Convoy Interrupts . | . . . . . . . . . . . . Stealth | -11 -10 -9 -9 -9 -9 -6 -6 -6 -6 -6 -5 --------- Run | Yrd Mat Mat Sto Rec Scr Fac Ext Cet Arc Hub Fac Distress Signals 13 | . 3 . 2 . . 2 1 2 . 3 . Communications Jammed . | . . . . . . . . . . . . Distress Signals . | . . . . . . . . . . . . Times Spotted 150 | . 20 4 27 4 . 19 18 2 18 38 . Peak Tracking Total 19 | . 6 2 4 1 . 6 5 2 2 19 . Tactical Retreats 2 | . . . . . . 1 . . . 1 . Traps | -11 -10 -9 -9 -9 -9 -6 -6 -6 -6 -6 -5 ------- Run | Yrd Mat Mat Sto Rec Scr Fac Ext Cet Arc Hub Fac Traps Triggered 13 | . . 1 3 . . 3 2 . . 4 . Indirectly . | . . . . . . . . . . . . Trap Hack Attempts . | . . . . . . . . . . . . Triggered . | . . . . . . . . . . . . Disarmed . | . . . . . . . . . . . . Reprogrammed . | . . . . . . . . . . . . Reused . | . . . . . . . . . . . . Traps Extracted . | . . . . . . . . . . . . Installed . | . . . . . . . . . . . . Triggered . | . . . . . . . . . . . . Machines | -11 -10 -9 -9 -9 -9 -6 -6 -6 -6 -6 -5 ---------- Run | Yrd Mat Mat Sto Rec Scr Fac Ext Cet Arc Hub Fac Machines Disabled 21 | . . . 4 . . 3 8 . 2 4 . Max in Single Turn 2 | . . . 1 . . 2 1 . 1 1 . Garrison Access 1 | . . . . . . 1 . . . . . Network Hub 3 | . . . . . . . . . . 3 . Machines Repaired . | . . . . . . . . . . . . Machines Dismantled 8 | . . . . . . . 7 . . 1 . Machines Sabotaged 1 | . . . . . . . . . . 1 . Overloaded Fab Kills . | . . . . . . . . . . . . Hacking | -11 -10 -9 -9 -9 -9 -6 -6 -6 -6 -6 -5 --------- Run | Yrd Mat Mat Sto Rec Scr Fac Ext Cet Arc Hub Fac Machines Accessed 45 | . 3 . 11 11 2 4 10 . . 4 . Terminals 37 | . 3 . 11 6 . 3 10 . . 4 . Fabricators . | . . . . . . . . . . . . Repair Stations . | . . . . . . . . . . . . Recycling Units 6 | . . . . 5 . 1 . . . . . Scanalyzers . | . . . . . . . . . . . . Garrison Access . | . . . . . . . . . . . . Total Hacks 113 | . 12 . 26 19 5 10 26 . . 15 . Successful 53 | . 5 . 10 11 5 2 17 . . 3 . Failed 60 | . 7 . 16 8 . 8 9 . . 12 . Catastrophic 7 | . 1 . 1 . . 1 3 . . 1 . Database Lockouts . | . . . . . . . . . . . . Manual 79 | . 10 . 11 21 . 6 16 . . 15 . Terminals 101 | . 12 . 26 13 . 9 26 . . 15 . Fabricators . | . . . . . . . . . . . . Repair Stations . | . . . . . . . . . . . . Recycling Units 7 | . . . . 6 . 1 . . . . . Scanalyzers . | . . . . . . . . . . . . Garrison Access . | . . . . . . . . . . . . Terminal Hacks 29 | . 2 . 8 1 5 2 11 . . . . Record 5 | . . . . . 4 . 1 . . . . Part Schematic 1 | . . . . . . . 1 . . . . Prototype ID Bank 4 | . . . . . . . 4 . . . . Open Door 5 | . . . 2 . . 1 2 . . . . Branch Access Points 1 | . 1 . . . . . . . . . . Terminal Index 3 | . 1 . 1 . . . 1 . . . . Recycling Unit Index 1 | . . . . . . 1 . . . . . Alert Level 4 | . . . 2 1 . . 1 . . . . Unreport Threat 1 | . . . . . . . 1 . . . . Zone Layout 3 | . . . 3 . . . . . . . . Proto ID Catalog 1 | . . . . . 1 . . . . . . Fabricator Hacks . | . . . . . . . . . . . . Repair Station Hacks . | . . . . . . . . . . . . Recycling Unit Hacks . | . . . . . . . . . . . . Scanalyzer . | . . . . . . . . . . . . Garrison Access Hacks . | . . . . . . . . . . . . Unauthorized Hacks 24 | . 3 . 2 10 . . 6 . . 3 . Terminals 19 | . 3 . 2 5 . . 6 . . 3 . Assimilate 1 | . . . . . . . . . . 1 . Botnet 3 | . . . 2 . . . 1 . . . . Skim 13 | . 3 . . 5 . . 5 . . . . Sabotage 2 | . . . . . . . . . . 2 . Fabricators . | . . . . . . . . . . . . Repair Stations . | . . . . . . . . . . . . Recycling Units 5 | . . . . 5 . . . . . . . Tunnel 5 | . . . . 5 . . . . . . . Scanalyzers . | . . . . . . . . . . . . Garrison Access . | . . . . . . . . . . . . Data Cores Recovered . | . . . . . . . . . . . . Used . | . . . . . . . . . . . . Hacking Detections 35 | . 3 . 10 6 . 4 9 . . 3 . Full Trace Events 4 | . 2 . 2 . . . . . . . . Feedback Events 1 | . . . 1 . . . . . . . . Corruption 1 | . . . 1 . . . . . . . . Feedback Blocked . | . . . . . . . . . . . . Robot Schematics Acquired . | . . . . . . . . . . . . Robots Built . | . . . . . . . . . . . . Authchips . | . . . . . . . . . . . . Time . | . . . . . . . . . . . . Total Robot Build Rating . | . . . . . . . . . . . . Part Schematics Acquired 1 | . . . . . . . 1 . . . . Parts Built . | . . . . . . . . . . . . Authchips . | . . . . . . . . . . . . Time . | . . . . . . . . . . . . Total Part Build Rating . | . . . . . . . . . . . . Parts Repaired . | . . . . . . . . . . . . Time . | . . . . . . . . . . . . Parts Recycled . | . . . . . . . . . . . . Recycled Matter . | . . . . . . . . . . . . Retrieved Matter . | . . . . . . . . . . . . Retrieved Components . | . . . . . . . . . . . . Parts Scanalyzed . | . . . . . . . . . . . . Part Schematics Acquired . | . . . . . . . . . . . . Parts Damaged . | . . . . . . . . . . . . Bothacking | -11 -10 -9 -9 -9 -9 -6 -6 -6 -6 -6 -5 ------------ Run | Yrd Mat Mat Sto Rec Scr Fac Ext Cet Arc Hub Fac Used RIF Installer . | . . . . . . . . . . . . Robots Hacked . | . . . . . . . . . . . . Non-combat . | . . . . . . . . . . . . Combat . | . . . . . . . . . . . . Robot Hacks Applied . | . . . . . . . . . . . . Relay Couplers Released 3 | . . . . . . 3 . . . . . Machine Destruction 3 | . . . . . . 3 . . . . . Fabnet Peak Effective % . | . . . . . . . . . . . . Robots Rewired 17 | . . . . 6 . . 11 . . . . Allies Hacked 4 | . . . . . . 4 . . . . . Hacks Repelled . | . . . . . . . . . . . . Allies | -11 -10 -9 -9 -9 -9 -6 -6 -6 -6 -6 -5 -------- Run | Yrd Mat Mat Sto Rec Scr Fac Ext Cet Arc Hub Fac Total Allies 29 | . . . . 6 . . 22 . . 1 . Largest Group 19 | . . . . 6 6 6 19 19 9 7 . Highest-Rated Group 558 | . . . . 86 86 86 558 558 272 215 . Highest-Rated Ally 159 | . . . . 27 27 27 159 39 39 39 . Total Orders 7 | . . . . . . . 2 2 . 3 . STAY 2 | . . . . . . . 1 . . 1 . FOLLOW 2 | . . . . . . . 1 . . 1 . GUARD 2 | . . . . . . . . 2 . . . AID 1 | . . . . . . . . . . 1 . Ally Attacks 221 | . . . . . . 5 93 75 11 37 . Total Damage 3953 | . . . . . . 97 1557 1490 170 639 . Kills 36 | . . . . . . . 13 10 5 8 . Allies Corrupted . | . . . . . . . . . . . . Allies Melted 1 | . . . . . . . 1 . . . . Intel | -11 -10 -9 -9 -9 -9 -6 -6 -6 -6 -6 -5 ------- Run | Yrd Mat Mat Sto Rec Scr Fac Ext Cet Arc Hub Fac Active Infowar (turns) 2788 | . . . . . . 846 827 . . 1115 . Terrain 2788 | . . . . . . 846 827 . . 1115 . Robot Analysis Total . | . . . . . . . . . . . . Derelict Logs Recovered . | . . . . . . . . . . . . Drone Launches . | . . . . . . . . . . . . Drone Recoveries . | . . . . . . . . . . . . Exploration | -11 -10 -9 -9 -9 -9 -6 -6 -6 -6 -6 -5 ------------- Run | Yrd Mat Mat Sto Rec Scr Fac Ext Cet Arc Hub Fac Turns Passed 13217 | 5 962 350 1061 1954 2482 1131 2270 466 1062 1474 . Spaces Moved 5936 | 5 450 171 448 978 1315 473 840 165 434 657 . Core 97 | . . . . . . . . . . 97 . Treads . | . . . . . . . . . . . . Legs 5414 | 5 450 171 448 978 1044 319 840 165 434 560 . Wheels 425 | . . . . . 271 154 . . . . . Hover . | . . . . . . . . . . . . Flight . | . . . . . . . . . . . . Fastest Speed 50 | 120 120 190 120 190 165 165 209 209 209 50 . Average Speed 190 | 120 172 190 189 190 186 190 209 210 209 171 . Slowest Speed 360 | 120 190 190 190 190 193 213 209 360 209 260 . Overloaded Moves . | . . . . . . . . . . . . Propulsion Burnouts . | . . . . . . . . . . . . Robots Hopped . | . . . . . . . . . . . . Potential Cave-ins . | . . . . . . . . . . . . Cave-ins Triggered . | . . . . . . . . . . . . Exploration Rate (%) 63 | 2 82 19 84 98 87 16 86 56 98 68 . Regions Visited 11 Branch Regions 7 Pre-discovered Areas 7 | . . . . 6 . . 1 . . . . Known Exits Taken 4 | . . 1 . 1 . . 1 . . 1 . Unknown Exits Taken 7 | 1 1 . 1 . 1 1 . 1 1 . . Scrap Searched 9 | . . . . . 9 . . . . . . Spaces Dug 41 | . . . 11 . . 3 . . . 27 . Terrain Destroyed 112 | . 12 1 27 . . 44 . . . 28 . Melee 7 | . . . 2 . . 3 . . . 2 . Projectile 12 | . 2 1 6 . . 1 . . . 2 . AOE 93 | . 10 . 19 . . 40 . . . 24 . Terrain Rammed . | . . . . . . . . . . . . Walls Destroyed . | . . . . . . . . . . . . Machines Disabled . | . . . . . . . . . . . . Actions | -11 -10 -9 -9 -9 -9 -6 -6 -6 -6 -6 -5 --------- Run | Yrd Mat Mat Sto Rec Scr Fac Ext Cet Arc Hub Fac Total 7250 | 4 562 191 551 1046 1345 625 1209 286 536 895 . Wait 426 | . 7 7 5 6 5 28 106 90 58 114 . Move 5925 | 4 449 170 447 977 1314 472 839 164 433 656 . Hop . | . . . . . . . . . . . . Pick Up 73 | . 22 2 6 3 7 12 5 5 4 7 . Fast Attach 62 | . 3 1 6 . 3 14 7 8 4 16 . Attach 16 | . . 2 . . 1 8 . 2 . 3 . Detach 6 | . . 1 . 1 . 2 . . . 2 . Swap 100 | . 11 3 11 2 5 17 20 2 4 25 . Drop 119 | . 23 2 11 1 10 21 15 14 7 15 . Fire 204 | . 45 3 52 11 . 35 16 1 4 37 . Melee 35 | . . . 3 . . 4 . . 21 7 . Ram 3 | . . . . . . . . . . 3 . Kick 25 | . 2 . 5 7 . 1 2 . 1 7 . Crush . | . . . . . . . . . . . . Escape Stasis 25 | . . . 5 . . 10 10 . . . . Rewire 176 | . . . . 38 . 1 137 . . . . Trap . | . . . . . . . . . . . . Miscellaneous 55 | . . . . . . . 52 . . 3 . Route ------- -11/Scrapyard -10/Materials (discovered 5 exits: [*Mat x2] / *Min x2 / [*Sub]) -9/Materials -9/Storage (discovered 2 exits: [*Mat] / *Rec) -9/Recycling (discovered 2 exits: *Fac / *Scr) -9/Scraptown (discovered 2 exits: *Fac x2) -6/Factory -6/Extension (discovered 3 exits: *Fac x2 / *Cet) -6/Cetus (discovered 3 exits: *Fac x2 / [*Arc]) -6/Archives (discovered 3 exits: *Fac / *Hub x2) -6/Hub_04(d) (discovered 4 exits: *Fac x4) -5/Factory History --------- Turn | Location | Event 1 | -11/Scrapyard | Discovered new exit (range 3) 6 | -11/Scrapyard | Entered Materials 22 | -10/Materials | Identified exit to Mines 315 | -10/Materials | Build established: Mutant 334 | -10/Materials | Discovered new exit (range 7) 599 | -10/Materials | Discovered new exit (range 12) 745 | -10/Materials | Discovered new exit (range 15) 968 | -10/Materials | Entered another Materials area 968 | -9/Materials | Evolved 2 slots: Propulsion x1, Utility x1 1244 | -9/Materials | Discovered new exit (range 11) 1315 | -9/Materials | Identified exit to Storage 1318 | -9/Materials | Entered Storage 1504 | -9/Storage | Garrison activated, responded to threat 2086 | -9/Storage | Discovered new exit (range 16) 2371 | -9/Storage | Used back door to open Recycling access 2371 | -9/Storage | Discovered new exit (range 5) 2379 | -9/Storage | Entered Recycling 2990 | -9/Recycling | Discovered new exit (range 16) 3774 | -9/Recycling | Learned Materials emergency access door positions 3842 | -9/Recycling | Learned Storage emergency access door positions 3899 | -9/Recycling | Learned location of Zion (-6) 3909 | -9/Recycling | Build established: Commander-Mutant 3948 | -9/Recycling | Learned location of 1 exit from Storage 3989 | -9/Recycling | Identified exit to Factory 3989 | -9/Recycling | Identified exit to Scraptown 4018 | -9/Recycling | Learned location of 3 exits from Materials 4055 | -9/Recycling | Learned Storage emergency access door positions 4102 | -9/Recycling | Learned location of 3 exits from Materials 4281 | -9/Recycling | Scanned before Scraplab entrance 4310 | -9/Recycling | Entered Scraplab 4333 | -9/Recycling | Entered Scraptown 4333 | -9/Scraptown | Accompanied by 6 allies 4333 | -9/Scraptown | System corruption cleaned by C-Scrubber 4684 | -9/Scraptown | Discovered new exit (range 13) 4752 | -9/Scraptown | Visited IN-MT5's Study 4763 | -9/Scraptown | Visited Red Mages 4792 | -9/Scraptown | Visited Spacefarers 4815 | -9/Scraptown | Heard Great Nut preacher, LISTEN AND RECITE! 4817 | -9/Scraptown | Visited Bundlers 5261 | -9/Scraptown | Visited Fellowship of the Rings 5381 | -9/Scraptown | Visited Comm Corps 5483 | -9/Scraptown | Visited Cyclists 5510 | -9/Scraptown | Visited UFD Registry 5510 | -9/Scraptown | Registered with UFD as "Metalstep" 5576 | -9/Scraptown | Visited Science Guys 5647 | -9/Scraptown | Visited Supply Room 5698 | -9/Scraptown | Visited Scrap Suit Storage 5730 | -9/Scraptown | Visited Scrapoid Research Area 5752 | -9/Scraptown | Visited Infowarlord's Domain 5781 | -9/Scraptown | Visited Research Penetration Think Tank 5821 | -9/Scraptown | Visited Sword Containment 5848 | -9/Scraptown | Visited Chapter 10 5881 | -9/Scraptown | Visited Abandonware Association 5904 | -9/Scraptown | Learned abandonware demo "KABOOM.EXE" 5904 | -9/Scraptown | Learned abandonware demo "MELTYB.EXE" 5947 | -9/Scraptown | Visited Science Testing Area 6276 | -9/Scraptown | Found Exp. Terrain Scanner 6719 | -9/Scraptown | Met Optimus 6719 | -9/Scraptown | Accepted into 0bPrime 6800 | -9/Scraptown | Discovered new exit (range 5) 6815 | -9/Scraptown | Entered Factory 6815 | -6/Factory | Accompanied by 6 allies 6815 | -6/Factory | Evolved 6 slots: Propulsion x1, Utility x3, Weapon x2 7303 | -6/Factory | Lost 3 allies 7814 | -6/Factory | Discovered new exit (range 27) 7826 | -6/Factory | Build established: Skirmisher 7876 | -6/Factory | Garrison activated, responded to threat 7905 | -6/Factory | Spotted B-75 Beast 7946 | -6/Factory | Entered Extension 8053 | -6/Extension | Rescued A7 8468 | -6/Extension | Spotted B-75 Beast 8530 | -6/Extension | Allies destroyed B-75 Beast 8530 | -6/Extension | Spotted B-75 Beast 8534 | -6/Extension | Extracted ID and sensor layout for unrecognized location from A7's data core 8635 | -6/Extension | Rescued a captive Derelict 8636 | -6/Extension | Rescued a captive Derelict 8687 | -6/Extension | Rescued a captive Derelict 8803 | -6/Extension | Build established: Scavenger-Tank 9029 | -6/Extension | Rescued a captive Derelict 9215 | -6/Extension | Build established: Commander-Tank 9344 | -6/Extension | Destroyed B-75 Beast 9434 | -6/Extension | Rescued a captive Derelict 9434 | -6/Extension | Rescued a captive Derelict 9680 | -6/Extension | Rescued a captive Derelict 9683 | -6/Extension | Rescued a captive Derelict 9787 | -6/Extension | Rescued a captive Derelict 9821 | -6/Extension | Build established: Commander-Skirmisher 9905 | -6/Extension | Rescued a captive Derelict 9934 | -6/Extension | Learned location of Lower Caves (-6) 10016 | -6/Extension | Learned 4 Lower Caves zone layouts 10087 | -6/Extension | Identified exit to Factory 10087 | -6/Extension | Identified exit to Cetus 10216 | -6/Extension | Entered Cetus 10216 | -6/Cetus | Accompanied by 19 allies 10234 | -6/Cetus | Build established: Commander-Tank 10273 | -6/Cetus | Lost 3 allies 10432 | -6/Cetus | Discovered new exit (range 16) 10479 | -6/Cetus | Spotted Cetus Guard 10481 | -6/Cetus | Allies destroyed Cetus Guard 10482 | -6/Cetus | Spotted Cetus Guard 10527 | -6/Cetus | Lost 7 allies 10547 | -6/Cetus | Met Revision 17 10620 | -6/Cetus | Build established: Scavenger-Tank 10682 | -6/Cetus | Entered Archives 10682 | -6/Archives | Accompanied by 9 allies 10742 | -6/Archives | Discovered new exit (range 14) 10890 | -6/Archives | Discovered new exit (range 15) 11744 | -6/Archives | Entered Hub_04(d) 11744 | -6/Hub_04(d) | Accompanied by 7 allies 11766 | -6/Hub_04(d) | Discovered exit to Factory (range 16) 12012 | -6/Hub_04(d) | Discovered exit to Factory (range 29) 12188 | -6/Hub_04(d) | Discovered exit to Factory (range 24) 12312 | -6/Hub_04(d) | Discovered exit to Factory (range 29) 12361 | -6/Hub_04(d) | Build established: Scavenger-Skirmisher 13032 | -6/Hub_04(d) | Network Hub disabled 13139 | -6/Hub_04(d) | Spotted Lightning 13139 | -6/Hub_04(d) | Spotted Lightning 13139 | -6/Hub_04(d) | Spotted Lightning 13146 | -6/Hub_04(d) | Spotted Lightning 13161 | -6/Hub_04(d) | System corruption reached 10% 13161 | -6/Hub_04(d) | Released all parts (10) 13180 | -6/Hub_04(d) | Spotted Lightning 13181 | -6/Hub_04(d) | Core integrity fell below 50% 13189 | -6/Hub_04(d) | Lost 4 parts (3n1u) 13193 | -6/Hub_04(d) | Network Hub disabled 13193 | -6/Hub_04(d) | Network Hub disabled 13195 | -6/Hub_04(d) | Spotted Lightning 13195 | -6/Hub_04(d) | Spotted Lightning 13211 | -6/Hub_04(d) | Core integrity fell below 20% 13218 | -6/Hub_04(d) | Entered Factory 13218 | -5/Factory | Evolved 2 slots: Utility x2 13218 | -5/Factory | Self-destructed Last Messages --------------- COORDINATES_RETRIEVED 13193_ ALERT: Suspicious activity at Terminal H008. Dispatching Investigation squad. 13195_ System corrupted: Heat flow error (+180). 13199_ EMDS Slug penetrates Wall. 13203_ Triggered Blade Trap. 13203_ Massive razor-sharp blades shoot up from within the floor. 13203_ Hvy. Pick severed. 13203_ Acquired Hvy. Pick. 13205_ Triggered Blade Trap. 13205_ Massive razor-sharp blades shoot up from within the floor. 13205_ Hvy. Pick severed. 13206_ K-01 Serf cleans the Backup Mainframe. 13208_ Critical hit (Burn: +37). 13210_ Penetrated by EMDS Slug. PARAMETERS=UTILITY+2 LOCATION=FACTORY GOAL=ESCAPE Map ----- +----------------------------------------------------+ | ?????????????????????????????? | | ?????????????????????????????? | | ?????????????????????????????? | | ?????????????????????????????? | | ?????????????????????????????? | | ?????????????????????????????? | | ?????????????????????????????? | | ?????????????????????????????? | | ?????????????????????????????? | | ?????????????????????????????? | | ?????????????????????????????? | | ?????????????????????????????? | | ???????????????????? ????????? | | ???????????????????? ####+###? | | ????????????????????? #? | | ????????????????????? #? | | ????????????????????? #? | | ?????????????????????? #? | | ?????????????????????? #? | | ??????????????????????# #? | | ??????????????????????# #? | | ??????????????????????# #? | | ??????????????????????# #? | | ??????????????????????# #? | | ??????????????????????+ #? | | ??????????????????????# @ #? | | ??????????????????????# #? | | ??????????????????????# #? | | ??????????????????????#######? | | ?????????????????????????????? | | ?????????????????????????????? | | ?????????????????????????????? | | ?????????????????????????????? | | ?????????????????????????????? | | ?????????????????????????????? | | ?????????????????????????????? | | ?????????????????????????????? | | ?????????????????????????????? | | ?????????????????????????????? | | ?????????????????????????????? | | ?????????????????????????????? | | ?????????????????????????????? | | ?????????????????????????????? | | ?????????????????????????????? | | ?????????????????????????????? | | ?????????????????????????????? | | ?????????????????????????????? | | ?????????????????????????????? | | ?????????????????????????????? | | ?????????????????????????????? | +----------------------------------------------------+ Best States ------------- Heat Dissipation 83 Energy Generation 25 Energy Capacity 500 Matter Stores 300 Matter Capacity 300 Sight Range 16 Terrain Scan Range 30 Terrain Scan Density 85 Armor Coverage 600 Utility Shielding 66 Evasion (%) 55 Targeting Accuracy 5 Recoil Reduction 2 Offensive Hacking 10 Authchip Count 1 Item Schematics ----------------- Adv. Salvage Targeting Computer | -6/Extension | Hacked Robot Schematics ------------------ None Fabricated ------------ Nothing Repaired ---------- Nothing Alien Tech Used ----------------- None Achievements -------------- None Challenges ------------ None Game ------ Seed MobileCryofiberWarhead Manual? 0 Play Time 01:11:01 Cumulative 240.5 hours Start 2025.05.21 @ 12:00:21 End 2025.05.21 @ 16:17:39 Sessions 3 Manual Loads 0 Difficulty Rogue Special Mode None Game No. 84 Rogue 84 Adventurer 0 Explorer 0 Win Type - Total 4 Types 1/0/2/0/0/0/0/0/0/1 Lore% 72 Gallery% 78 Achievement% 70 Wizard Run 0 Options --------- Layout 1 ASCII 0 Keyboard 0 Movement Arrows Keybinds 0 Fullscreen 2 Font 24/Smallcaps Map View 50x35 Zoom Use 0% Tactical HUD 1 Map Filters NONE Filters NONE Steam 1 RUN: 12830134-53de-47c3-9f7e-9501d326e70f